Cogmind - Beta 12 @@@ ROGUE MODE // 2024.01.18 @ 05:36:49 Player: Peregrine Result: Self-destructed Performance ------------- Evolutions (7) 3500 Regions Visited (19) 3800 Robots Destroyed (111) 555 Value Destroyed (9227) 9227 Prototype IDs (17) 340 Alien Tech Used (0) 0 Bonus (6632) 6632 TOTAL SCORE: 24054 Bonus ------- High Alert Combat Kills 1471 Follower Combat Kills 1419 Entered Garrisons 1400 Used RIF Installer 2500 Friendly Fire -158 Cogmind --------- Core Integrity 941/1300 Matter 100/300 Energy 75/150 System Corruption 16% Temperature Cool (0) Movement Core (2850) Ox56 Location -3/Garrison Parts ------- > --- POWER (2) -------- Micro Fission Core > --- PROPULSION (7) --- Biometal Leg > --- UTILITY (8) ------ Cargo Storage Unit Improved Target Analyzer Advanced Phase Shifter Improved Medium Armor Plating Relay Coupler [Sentry] (13) > --- WEAPON (4) ------- HERF Cannon Improved Remote Datajack > --- INVENTORY (30) --- Biometal Medium Treads Q-thruster Q-thruster Q-thruster Advanced Heat Sink Advanced Terrain Scanner Advanced Focal Shield Advanced Shield Generator Relay Coupler [Cutter] (35) Relay Coupler [Duelist] (33) Relay Coupler [Sentry] (19) Relay Coupler [Sentry] (24) Relay Coupler [Sentry] (19) Relay Coupler [Sentry] (24) Relay Coupler [Sentry] (26) Relay Coupler [Specialist] (36) Relay Coupler [Specialist] (19) Peak State ------------ > --- POWER ------------ Micro Fission Core Micro Fission Core > --- PROPULSION ------- Myomer Leg Myomer Leg Myomer Leg Myomer Leg Myomer Leg Advanced VSS Leg Advanced VSS Leg > --- UTILITY ---------- Advanced Heat Sink Cargo Storage Unit Enhanced Optical Array Relay Coupler [NC] Relay Coupler [Grunt] Relay Coupler [Sentry] Relay Coupler [Hunter] > --- WEAPON ----------- HERF Cannon Cooled Proton Cannon Mass Driver Hardcell Cannon > --- INVENTORY -------- Light Particle Reactor Biometal Medium Treads Flexi-carbon Leg Improved Target Analyzer Advanced Particle Charger Advanced Weapon Cycler Advanced Phase Shifter Improved Medium Armor Plating Advanced Focal Shield Advanced Shield Generator Relay Coupler [Swarmer] Relay Coupler [Cutter] Relay Coupler [Duelist] Relay Coupler [Sentry] Relay Coupler [Sentry] Relay Coupler [Sentry] Relay Coupler [Sentry] Relay Coupler [Sentry] Relay Coupler [Demolisher] Relay Coupler [Demolisher] Relay Coupler [Specialist] Relay Coupler [Specialist] Advanced Recalibrator Phase Gun Phase Gun HERF Cannon Magnetic Acceleration Cannon Improved Remote Datajack [Rating: 129] Favorites ----------- Power Neutrino Core Engine Light Angular Momentum Engine Power Core Neutrino Core Reactor Light Antimatter Reactor Propulsion Improved Heavy Treads Treads Improved Heavy Treads Leg Improved VSS Leg Wheel Armored Huge Wheel Flight Unit Improved VTOL Module Utility Cargo Storage Unit Device Improved Cooling System Storage Cargo Storage Unit Processor Advanced Visual Processing Unit Hackware Relay Coupler [NC] Protection Improved Light Armor Plating Weapon Railgun Energy Gun Phase Gun Energy Cannon Advanced Beam Cannon Ballistic Gun Railgun Ballistic Cannon Heavy Linear Accelerator Launcher Rocket Array Special Weapon Advanced Remote Datajack Slashing Weapon Katana Special Melee Weapon Improved Datajack Build | -11 -10 -9 -9 -8 -8 -7 -7 -6 -6 -6 -5 -5 -5 -5 -4 -4 -4 -3 -3 ------- Run | Jun Mat Mat Min Mat Gar Fac Gar Fac Gar Fac Fac Gar Fac Gar Fac Gar Fac Res Gar Slots Evolved 14 | . . 2 . 2 . 2 . 2 . . 2 . . . 2 . . 2 . Power 1 | . . . . 1 . . . . . . . . . . . . . . . Propulsion 5 | . . 1 . 1 . . . 2 . . 1 . . . . . . . . Utility 6 | . . 1 . . . 2 . . . . 1 . . . . . . 2 . Weapon 2 | . . . . . . . . . . . . . . . 2 . . . . Parts Attached 420 | . 7 6 . 17 33 6 33 4 10 60 7 40 2 55 6 58 32 27 17 Power 54 | . . 1 . 3 2 1 6 1 . 7 . 10 . 8 1 6 4 4 . Engine 21 | . . 1 . 2 2 . 4 . . 4 . 8 . . . . . . . Core 23 | . . . . 1 . 1 1 1 . 3 . 2 . 8 1 1 3 1 . Reactor 10 | . . . . . . . 1 . . . . . . . . 5 1 3 . Propulsion 120 | . . 3 . 4 8 2 5 2 3 22 3 4 . 9 2 24 15 9 5 Treads 29 | . . 3 . . . . 2 2 . 3 . 3 . 9 2 4 . 1 . Leg 61 | . . . . . . . . . 3 10 . . . . . 20 15 8 5 Wheel 4 | . . . . . . . . . . . 3 1 . . . . . . . Hover . | . . . . . . . . . . . . . . . . . . . . Flight 26 | . . . . 4 8 2 3 . . 9 . . . . . . . . . Utility 110 | . 2 1 . 7 10 2 7 . 6 17 2 13 . 14 . 13 2 8 6 Device 54 | . . . . 4 7 2 4 . 4 9 2 3 . 7 . 4 . 5 3 Storage 3 | . . . . 1 . . . . . . . 1 . 1 . . . . . Processor 13 | . 2 . . 2 1 . . . . 4 . . . 1 . . 1 1 1 Hackware 30 | . . . . . 1 . 2 . 2 3 . 7 . 4 . 8 1 1 1 Protection 10 | . . 1 . . 1 . 1 . . 1 . 2 . 1 . 1 . 1 1 Artifact . | . . . . . . . . . . . . . . . . . . . . Weapon 136 | . 5 1 . 3 13 1 15 1 1 14 2 13 2 24 3 15 11 6 6 Energy Gun 39 | . 2 . . . 3 1 1 . . 6 2 8 . 10 . 4 2 . . Energy Cannon 11 | . . 1 . . . . . . . . . 1 . 1 1 . 3 2 2 Ballistic Gun 20 | . 1 . . . . . 5 . . 1 . 1 . 7 2 3 . . . Ballistic Cannon 23 | . . . . 2 3 . . . . 4 . . . 1 . 5 3 3 2 Launcher 2 | . . . . 1 . . . . . 1 . . . . . . . . . Special Weapon 20 | . 2 . . . . . . . . 2 . 1 2 4 . 3 3 1 2 Impact Weapon . | . . . . . . . . . . . . . . . . . . . . Slashing Weapon 14 | . . . . . 6 . 6 1 . . . . . 1 . . . . . Piercing Weapon . | . . . . . . . . . . . . . . . . . . . . Special Melee Weapon 7 | . . . . . 1 . 3 . 1 . . 2 . . . . . . . Unidentified Prototypes 11 | . . . . 2 . 1 1 . 1 3 1 . . . . . . 2 . Corrupted Parts 3 | . . . . . . . . . . 2 . . . . . 1 . . . System Corruption 9 | . . . . . . . . . . 8 . . . . . 1 . . . Parts Lost 78 | . . 1 . 1 6 . 1 . 9 20 4 4 . 1 . 14 . . 17 Power 11 | . . 1 . 1 1 . . . 1 2 . 1 . 1 . 2 . . 1 Propulsion 37 | . . . . . 3 . 1 . 1 11 4 . . . . 8 . . 9 Utility 19 | . . . . . 2 . . . 5 4 . 3 . . . 1 . . 4 Weapon 11 | . . . . . . . . . 2 3 . . . . . 3 . . 3 Highest Loss Streak 10 | . . 1 . 1 3 . 1 . 6 10 4 2 . 1 . 7 . . 10 To Critical Strikes 2 | . . . . . . . . . . 1 . . . . . . . . 1 Average Slot Usage (%) 78 | . 91 91 100 87 90 88 84 77 69 70 73 67 68 74 75 80 88 85 69 Engine 4 | . 14 10 11 9 12 1 7 5 . 8 . 3 11 2 . . . . . Core 4 | . . . . 6 . 5 . . 5 . 11 4 . 8 10 4 5 6 4 Reactor 2 | . . . . . . . 4 6 5 . . . . . . 5 3 1 2 Treads 10 | . . 21 33 22 . . 13 18 18 2 . 5 17 22 21 6 . . . Leg 8 | . 28 7 . . . . . . 1 15 . . . . . 22 35 33 26 Wheel 1 | . . . . . . . . . . . 12 10 . . . . . . . Flight 3 | . . . . 5 34 28 3 . . 5 6 . . . . . . . . Device 7 | . . . . 8 6 21 22 20 11 10 6 7 5 7 5 1 . 2 6 Storage 3 | . 14 11 11 8 1 . . . . . . 1 5 5 5 5 5 4 4 Processor 3 | . 6 11 11 8 12 7 3 . . 7 17 5 . . . . . 4 . Hackware 11 | . . . . . . 7 6 6 7 6 4 14 17 13 15 17 20 19 17 Protection 1 | . . 7 11 1 4 . 3 6 5 . . 1 . . . . . . . Energy Gun 3 | . 16 1 . . 3 6 . . . 4 11 7 1 3 . 3 2 1 . Energy Cannon 1 | . . 9 11 8 . . . . . . . . . . 3 . 2 2 3 Ballistic Gun 2 | . 8 11 11 1 . . 5 6 5 . . . 5 3 8 2 . . . Ballistic Cannon 2 | . . . . 1 11 . . . . 4 . . . . . 4 5 3 1 Special Weapon 1 | . 3 . . . . . . . . . . . 2 1 5 3 3 3 . Naked Turns . | . . . . . . . . . . . . . . . . . . . . Heaviest Build 208 | 13 14 18 16 29 26 15 40 40 40 49 32 177 169 189 187 208 199 187 178 Greatest Support 255 | 20 20 60 60 60 26 19 162 225 225 85 84 173 173 255 255 255 168 178 171 Greatest Overweight (x) 6 | . . . . 1 1 . 1 . . 4 . 1 . 1 . 6 1 1 1 Average Overweight (x) . | . . . . . . . . . . . . . . . . 1 . . 1 Largest Inventory Capacity 30 | 8 8 8 8 8 8 5 5 5 5 5 5 30 30 30 30 30 30 30 30 Average Capacity 18 | 8 8 8 8 7 5 5 5 5 5 5 5 14 30 30 30 30 30 30 30 Most Carried 30 | 6 8 7 6 8 8 5 5 5 5 5 5 26 27 30 30 30 30 30 29 Average Carried 15 | 6 6 6 6 6 5 4 4 3 4 3 1 9 26 27 27 26 22 27 24 Final Capacity 30 | 8 8 8 8 8 5 5 5 5 5 5 5 30 30 30 30 30 30 30 30 Final Carried 30 | 6 6 6 6 8 4 5 5 3 2 5 2 26 26 30 27 28 25 30 17 Class Distribution -------------------- 26% | Botlord-Mutant 25% | Scavenger-Mutant 18% | Mutant 8% | Botlord-Gunner 6% | Bothacker-Mutant 4% | Sprinter 3% | Hauler-Mutant 3% | Scavenger-Sprinter Dominant Class ---------------- Mutant | -10/Materials Mutant | -9/Materials Mutant | -9/Mines Mutant | -8/Materials Sprinter | -8/Garrison Scavenger-Sprinter | -7/Factory Scavenger-Mutant | -7/Garrison Scavenger-Mutant | -6/Factory Scavenger-Mutant | -6/Garrison Mutant | -6/Factory Mutant | -5/Factory Scavenger-Mutant | -5/Garrison Scavenger-Mutant | -5/Factory Botlord-Mutant | -5/Garrison Botlord-Gunner | -4/Factory Botlord-Mutant | -4/Garrison Botlord-Mutant | -4/Factory Botlord-Mutant | -3/Research Botlord-Mutant | -3/Garrison Resources | -11 -10 -9 -9 -8 -8 -7 -7 -6 -6 -6 -5 -5 -5 -5 -4 -4 -4 -3 -3 ----------- Run | Jun Mat Mat Min Mat Gar Fac Gar Fac Gar Fac Fac Gar Fac Gar Fac Gar Fac Res Gar Matter Collected 7693 | 200 30 53 . 91 696 . 649 . 80 928 152 511 . 1428 . 1899 459 372 145 Remotely . | . . . . . . . . . . . . . . . . . . . . Salvage Created 6948 | . 30 105 . 170 422 . 854 . . 643 211 1338 . 1930 . 787 208 119 131 Parts 264 | . 2 10 . 8 30 . 22 . . 47 2 29 . 74 . 25 6 6 3 Haulers Intercepted 2 | . . . . 2 . . . . . . . . . . . . . . . Recyclers Shooed 1 | . . . . . . . . . . . . . . . . . 1 . . Parts Field Recycled . | . . . . . . . . . . . . . . . . . . . . Retrieved Matter . | . . . . . . . . . . . . . . . . . . . . Parts Self-Destructed . | . . . . . . . . . . . . . . . . . . . . Prevented . | . . . . . . . . . . . . . . . . . . . . Kills | -11 -10 -9 -9 -8 -8 -7 -7 -6 -6 -6 -5 -5 -5 -5 -4 -4 -4 -3 -3 ------- Run | Jun Mat Mat Min Mat Gar Fac Gar Fac Gar Fac Fac Gar Fac Gar Fac Gar Fac Res Gar Combat Hostiles Destroyed 102 | . . 2 . 1 20 . 5 . . 15 4 13 . 21 . 15 2 2 2 Melee 3 | . . . . . 3 . . . . . . . . . . . . . . Guns 51 | . . . . . 4 . 5 . . 8 4 13 . 15 . 2 . . . Cannons 41 | . . 2 . 1 10 . . . . 7 . . . 4 . 11 2 2 2 AOE 3 | . . . . . 3 . . . . . . . . . . . . . . Classes Destroyed 16 | . 1 1 . 3 4 . . . . 3 . 1 . 1 . 2 . . . Worker 2 | . . . . . . . . . . 2 . . . . . . . . . Builder 1 | . . . . . . . . . . 1 . . . . . . . . . Hauler 2 | . . . . 2 . . . . . . . . . . . . . . . Recycler 2 | . . . . 1 . . . . . . . . . . . . 1 . . Watcher 2 | . 1 . . . . . . . . 1 . . . . . . . . . Swarmer 25 | . . . . . 9 . 4 . . 5 . 2 . 4 . 1 . . . Cutter 4 | . . . . . . . . . . . . . . 4 . . . . . Grunt 30 | . . . . . 4 . . . . 4 4 4 . 6 . 4 . 2 2 Brawler 2 | . . . . . . . . . . . . 2 . . . . . . . Duelist 4 | . . . . . 2 . . . . . . 1 . . . 1 . . . Sentry 13 | . . 2 . . 4 . . . . 2 . 1 . 3 . 1 . . . Specialist 7 | . . . . . . . . . . 2 . 1 . 2 . 2 . . . Hunter 5 | . . . . 1 . . 1 . . . . 1 . . . 1 1 . . Programmer 10 | . . . . . 1 . . . . 2 . 1 . 2 . 3 1 . . Behemoth 1 | . . . . . . . . . . . . . . . . 1 . . . Striker 1 | . . . . . . . . . . . . . . . . 1 . . . Best Kill Streak 6 | . 1 1 . 2 6 . 4 . . 4 4 3 . 4 . 3 1 2 1 Combat Bots Only 6 | . . 1 . 1 6 . 4 . . 3 4 3 . 4 . 3 1 2 1 Max Kills in Single Turn 3 | . 1 1 . 2 3 . 2 . . 1 1 1 . 2 . 1 1 1 1 Gunslinging 1 | . . . . . . . . . . . . . . 1 . . . . . Exploded 3 | . . . . . 3 . . . . . . . . . . . . . . Melee 1 | . . . . . 1 . . . . . . . . . . . . . . Uniques/NPCs Destroyed . | . . . . . . . . . . . . . . . . . . . . Combat | -11 -10 -9 -9 -8 -8 -7 -7 -6 -6 -6 -5 -5 -5 -5 -4 -4 -4 -3 -3 -------- Run | Jun Mat Mat Min Mat Gar Fac Gar Fac Gar Fac Fac Gar Fac Gar Fac Gar Fac Res Gar Damage Taken 17596 | . 48 493 . 230 1046 . 457 70 2111 3006 212 838 . 2783 . 2908 918 379 2097 Core 2232 | . . 50 . 21 273 . 107 35 175 533 20 53 . 201 . 326 79 104 255 Absorbed by Shields 71 | . . . . 44 9 . . . 12 . . . . . . 6 . . . Regen/Repaired (Parts) 87 | . . . . . . 35 . . . . . . 52 . . . . . . Core Remaining (%) 70 | 100 100 . 87 . 46 . 84 . . 12 . . . 72 . . 64 . . Volleys Fired 575 | . 4 21 . 13 40 . 24 . 17 58 10 89 5 134 . 112 31 7 10 Largest 3 | . 2 2 . 2 2 . 2 . 1 2 2 2 1 2 . 3 3 3 3 Hottest 233 | . 80 88 . 113 100 . 75 . 33 160 155 176 5 163 . 173 233 210 158 Shots Fired 960 | . 6 33 . 16 69 . 42 . 17 96 20 156 5 249 . 179 43 11 18 Gun 595 | . 4 24 . . 22 . 42 . 17 40 20 149 . 211 . 60 6 . . Cannon 270 | . . 9 . 15 47 . . . . 50 . . . 25 . 83 20 6 15 Launcher 1 | . . . . 1 . . . . . . . . . . . . . . . Special 94 | . 2 . . . . . . . . 6 . 7 5 13 . 36 17 5 3 Kinetic 418 | . . 21 . 4 47 . 40 . 17 60 . 6 . 71 . 123 17 4 8 Thermal 381 | . 2 9 . 11 22 . 2 . . 30 20 143 . 123 . 13 6 . . Explosive 1 | . . . . 1 . . . . . . . . . . . . . . . Electromagnetic 68 | . 4 3 . . . . . . . . . . . 42 . 7 3 2 7 Robot Hit Streak 47 | . 1 5 . 3 13 . 10 . 4 9 25 47 2 31 . 24 17 2 5 Robot Miss Streak 20 | . 2 3 . 3 6 . 6 . 2 20 2 5 1 4 . 6 3 1 1 Penetration Max 1 | . . . . . . . . . . . . . . 1 . 1 . . . Secondary Targets 5 | . . . . . . . 1 . . . . 2 . 2 . . . . . Max Gunslinging Chain 1 | . . . . . . . 1 . . . . 1 . 1 . . . . . Shots Hit Robots 708 | . 1 19 . 10 72 . 66 . 7 78 19 124 3 162 . 93 34 5 15 Core Hits 428 | . 1 7 . 10 60 . 64 . 1 72 28 84 . 68 . 21 6 2 4 Critical Kills 1 | . . . . . . . . . . . . . . . . 1 . . . Critical Parts Destroyed 2 | . . . . . . . . . . 1 . . . 1 . . . . . Critical Strikes 21 | . . . . . . . . . . 1 . 5 . 6 . 6 2 1 . Burn 9 | . . . . . . . . . . . . 5 . 4 . . . . . Destroy 3 | . . . . . . . . . . 1 . . . 1 . 1 . . . Blast 7 | . . . . . . . . . . . . . . . . 5 2 . . Corrupt 2 | . . . . . . . . . . . . . . 1 . . . 1 . Melee Attacks 100 | . . . . . 23 . 65 . 8 . . 4 . . . . . . . Impact . | . . . . . . . . . . . . . . . . . . . . Slashing 84 | . . . . . 23 . 57 . 4 . . . . . . . . . . Piercing . | . . . . . . . . . . . . . . . . . . . . Sneak Attacks 1 | . . . . . 1 . . . . . . . . . . . . . . Combat Hostiles 1 | . . . . . 1 . . . . . . . . . . . . . . Follow-up Attacks 2 | . . . . . 2 . . . . . . . . . . . . . . Damage Inflicted 18067 | . 24 260 . 376 2110 . 1833 . 146 1522 524 3099 . 3850 . 3030 715 144 434 Guns 9761 | . 24 137 . . 251 . 505 . 146 755 524 3099 . 3366 . 835 119 . . Cannons 5564 | . . 123 . 163 818 . . . . 700 . . . 484 . 2106 592 144 434 Explosions 706 | . . . . 213 493 . . . . . . . . . . . . . . Melee 1876 | . . . . . 548 . 1328 . . . . . . . . . . . . Ramming 160 | . . . . . . . . . . 67 . . . . . 89 4 . . Kinetic 7092 | . . 106 . 41 818 . 460 . 146 859 . . . 913 . 2837 568 102 242 Thermal 7084 | . . 123 . 122 251 . 45 . . 596 524 3099 . 2205 . . 119 . . Explosive 706 | . . . . 213 493 . . . . . . . . . . . . . . Electromagnetic 1149 | . 24 31 . . . . . . . . . . . 732 . 104 24 42 192 Impact . | . . . . . . . . . . . . . . . . . . . . Slashing 1876 | . . . . . 548 . 1328 . . . . . . . . . . . . Piercing . | . . . . . . . . . . . . . . . . . . . . Highest Corruption 20 | . . . . . . . . . 6 20 . 4 4 5 . 11 11 5 16 Average Corruption 6 | . . . . . . . . . 3 12 . 4 4 4 . 7 11 4 5 Corruption Purged . | . . . . . . . . . . . . . . . . . . . . Corruption Blocked . | . . . . . . . . . . . . . . . . . . . . Effects 241 | . . . . . . . . . 2 40 . 37 3 52 . 69 24 8 6 Message Errors 58 | . . . . . . . . . 1 6 . 7 1 11 . 22 6 2 2 Matter Fused 59 | . . . . . . . . . . 14 . 8 . 14 . 17 5 . 1 Heat Flow Errors 28 | . . . . . . . . . . 2 . 7 1 8 . 4 . 5 1 Energy Discharges 25 | . . . . . . . . . . 7 . 2 1 7 . 1 6 . 1 Parts Rejected 8 | . . . . . . . . . 1 1 . 1 . 1 . 2 . 1 1 Parts Fused 3 | . . . . . . . . . . . . 3 . . . . . . . Data Loss (minor) 23 | . . . . . . . . . . 3 . 4 . 6 . 7 3 . . Data Loss (major) 11 | . . . . . . . . . . 2 . 1 . 1 . 6 1 . . Misfires 9 | . . . . . . . . . . 1 . 1 . 3 . 3 1 . . Alerts 6 | . . . . . . . . . . 1 . 1 . 1 . 2 1 . . Weapon Failures 11 | . . . . . . . . . . 3 . 2 . . . 5 1 . . Overload Shots . | . . . . . . . . . . . . . . . . . . . . Overflow Damage 200 | . . . . 12 5 . 24 . . . . . . . . 140 19 . . Projectiles 169 | . . . . 10 . . . . . . . . . . . 140 19 . . Explosions 2 | . . . . 2 . . . . . . . . . . . . . . . Melee 29 | . . . . . 5 . 24 . . . . . . . . . . . . Knockbacks 51 | . . . . . 11 . . . . 28 . . . . . 4 4 . 4 Impact . | . . . . . . . . . . . . . . . . . . . . Kinetic 48 | . . . . . 11 . . . . 25 . . . . . 4 4 . 4 Secondary 3 | . . . . . . . . . . 3 . . . . . . . . . Self-Inflicted Damage 25 | . . . . 24 . . . . . 1 . . . . . . . . . Shots 1 | . . . . 1 . . . . . . . . . . . . . . . Rammed 3 | . . . . . . . . . . 3 . . . . . . . . . Targets Rammed 19 | . . . . . . . . . . 12 . . . . . 6 1 . . Kicked 16 | . . . . . . . . . . 9 . . . . . 6 1 . . Crushed . | . . . . . . . . . . . . . . . . . . . . Highest Temperature 491 | . 18 168 . 209 390 . 7 . . 269 48 233 73 450 . 465 287 491 465 Average Temperature 94 | . 12 76 . 95 75 . 7 . . 45 18 79 46 104 . 98 129 178 175 Received Heat Transfer 3186 | . . 210 . 22 261 . 54 . 216 828 111 108 . 542 . 322 57 9 446 Effects 16 | . . . . . 1 . . . . . . 1 . 3 . 6 2 2 1 Shutdowns 5 | . . . . . . . . . . . . . . 1 . 2 . 1 1 Energy Bleed 2 | . . . . . . . . . . . . 1 . 1 . . . . . Interference 3 | . . . . . . . . . . . . . . . . 1 2 . . Matter Decay 1 | . . . . . . . . . . . . . . 1 . . . . . Damage (minor) 2 | . . . . . 1 . . . . . . . . . . 1 . . . Damage (major) 3 | . . . . . . . . . . . . . . . . 2 . 1 . Siege Activations . | . . . . . . . . . . . . . . . . . . . . Robots Corrupted 3 | . . . . . . . . . . . . . . 1 . 2 . . . Combat Hostiles 3 | . . . . . . . . . . . . . . 1 . 2 . . . Parts Fried 6 | . . . . . . . . . . . . . . 5 . 1 . . . Impact Corruptions . | . . . . . . . . . . . . . . . . . . . . Robots Melted 1 | . . . . . . . . . . . . . . 1 . . . . . Combat Hostiles 1 | . . . . . . . . . . . . . . 1 . . . . . Parts Melted 22 | . . . . . . . . . . 5 3 5 . 9 . . . . . Heat Transferred 11547 | . . 222 . 222 629 . 40 . . 1270 840 4252 . 3848 . . 224 . . Parts Sabotaged 3 | . . . . . . . . . . . . . . . . . 3 . . Parts Stolen . | . . . . . . . . . . . . . . . . . . . . Parts Stripped . | . . . . . . . . . . . . . . . . . . . . Power Chain Reactions . | . . . . . . . . . . . . . . . . . . . . Missiles Intercepted . | . . . . . . . . . . . . . . . . . . . . Alert | -11 -10 -9 -9 -8 -8 -7 -7 -6 -6 -6 -5 -5 -5 -5 -4 -4 -4 -3 -3 ------- Run | Jun Mat Mat Min Mat Gar Fac Gar Fac Gar Fac Fac Gar Fac Gar Fac Gar Fac Res Gar Peak Influence 1845 | . 51 140 54 97 847 470 1522 798 667 425 222 936 495 1845 968 1798 1116 509 205 Initial 968 | . . 21 54 20 65 444 329 798 558 310 172 155 491 346 968 677 943 480 205 Average 717 | . 29 82 54 34 293 464 861 798 613 274 210 529 492 965 968 1197 993 469 169 Maximum Alert Level 5 | . . . . . 3 2 4 3 2 2 1 3 2 5 3 5 4 2 1 Low Security (%) 13 | 100 100 100 100 100 49 . . . . 21 22 3 . . . . . . 46 Level 1 13 | . . . . . 19 . 6 . . 69 77 15 . 13 . . . 5 53 Level 2 28 | . . . . . 29 100 39 . 100 9 . 69 100 21 . 1 . 94 . Level 3 22 | . . . . . 1 . 27 100 . . . 11 . 21 100 41 85 . . Level 4 17 | . . . . . . . 26 . . . . . . 30 . 48 14 . . Level 5 3 | . . . . . . . . . . . . . . 12 . 8 . . . High Security . | . . . . . . . . . . . . . . . . . . . . Max Security . | . . . . . . . . . . . . . . . . . . . . Squads Dispatched 15 | . . 2 . . . . . . . 6 . . . . 1 . 5 1 . Investigation . | . . . . . . . . . . . . . . . . . . . . Extermination 4 | . . . . . . . . . . 2 . . . . . . 1 1 . Reinforcement 5 | . . 2 . . . . . . . 2 . . . . . . 1 . . Assault 5 | . . . . . . . . . . 1 . . . . 1 . 3 . . Garrison 1 | . . . . . . . . . . 1 . . . . . . . . . Intercept . | . . . . . . . . . . . . . . . . . . . . Searches Triggered . | . . . . . . . . . . . . . . . . . . . . Construction Impeded 1 | . . . . . . . . . . . . . . . . . 1 . . Haulers Reinforced . | . . . . . . . . . . . . . . . . . . . . Active Scanning Responses . | . . . . . . . . . . . . . . . . . . . . Cargo Convoy Interrupts . | . . . . . . . . . . . . . . . . . . . . Alert ID Control Effect 13 | . . . . . . . . . . . . . . . . 5 7 1 . Stealth | -11 -10 -9 -9 -8 -8 -7 -7 -6 -6 -6 -5 -5 -5 -5 -4 -4 -4 -3 -3 --------- Run | Jun Mat Mat Min Mat Gar Fac Gar Fac Gar Fac Fac Gar Fac Gar Fac Gar Fac Res Gar Distress Signals 3 | . . . . 2 . . . . . . . . . . . . 1 . . Communications Jammed . | . . . . . . . . . . . . . . . . . . . . Distress Signals . | . . . . . . . . . . . . . . . . . . . . Times Spotted 254 | . 2 7 . 7 26 . 13 . 23 33 4 24 . 32 . 47 17 8 11 Peak Tracking Total 17 | . 1 4 . 4 6 . 4 . 17 7 4 5 . 5 1 9 5 4 7 Tactical Retreats 18 | . . . . . 1 . 1 . 3 3 . 1 . 1 . 5 . 2 1 Traps | -11 -10 -9 -9 -8 -8 -7 -7 -6 -6 -6 -5 -5 -5 -5 -4 -4 -4 -3 -3 ------- Run | Jun Mat Mat Min Mat Gar Fac Gar Fac Gar Fac Fac Gar Fac Gar Fac Gar Fac Res Gar Traps Triggered 26 | . 1 . . . 6 . 1 . . 4 . 3 . 4 . 5 1 1 . Indirectly . | . . . . . . . . . . . . . . . . . . . . Trap Hack Attempts . | . . . . . . . . . . . . . . . . . . . . Triggered . | . . . . . . . . . . . . . . . . . . . . Disarmed . | . . . . . . . . . . . . . . . . . . . . Reprogrammed . | . . . . . . . . . . . . . . . . . . . . Reused . | . . . . . . . . . . . . . . . . . . . . Traps Extracted . | . . . . . . . . . . . . . . . . . . . . Installed . | . . . . . . . . . . . . . . . . . . . . Triggered . | . . . . . . . . . . . . . . . . . . . . Machines | -11 -10 -9 -9 -8 -8 -7 -7 -6 -6 -6 -5 -5 -5 -5 -4 -4 -4 -3 -3 ---------- Run | Jun Mat Mat Min Mat Gar Fac Gar Fac Gar Fac Fac Gar Fac Gar Fac Gar Fac Res Gar Machines Disabled 26 | . . . . 1 3 . 4 . 1 . . 3 . 6 . 6 2 . . Max in Single Turn 2 | . . . . 1 2 . 1 . 1 . . 1 . 2 . 1 1 . . Garrison Access 1 | . . . . . . . . . . . . . . . . . 1 . . Garrison Relay 18 | . . . . . 1 . 4 . 1 . . 3 . 4 . 5 . . . Phase Generator 2 | . . . . . 1 . . . . . . . . 1 . . . . . Machines Repaired . | . . . . . . . . . . . . . . . . . . . . Machines Sabotaged . | . . . . . . . . . . . . . . . . . . . . Overloaded Fab Kills . | . . . . . . . . . . . . . . . . . . . . Hacking | -11 -10 -9 -9 -8 -8 -7 -7 -6 -6 -6 -5 -5 -5 -5 -4 -4 -4 -3 -3 --------- Run | Jun Mat Mat Min Mat Gar Fac Gar Fac Gar Fac Fac Gar Fac Gar Fac Gar Fac Res Gar Machines Accessed 41 | . 2 3 . 4 4 2 2 2 2 2 3 2 2 4 1 2 . 4 . Terminals 25 | . 2 3 . 2 4 . 2 . 2 . 1 2 . 4 . 2 . 1 . Fabricators . | . . . . . . . . . . . . . . . . . . . . Repair Stations 3 | . . . . . . 1 . . . . . . 1 . . . . 1 . Recycling Units 3 | . . . . 1 . . . . . 1 . . . . . . . 1 . Scanalyzers 3 | . . . . . . . . 1 . 1 1 . . . . . . . . Garrison Access 7 | . . . . 1 . 1 . 1 . . 1 . 1 . 1 . . 1 . Total Hacks 88 | . 9 11 . 10 9 4 5 2 2 3 5 3 4 8 1 5 . 7 . Successful 39 | . 5 4 . 5 2 4 . 1 2 1 3 1 3 1 1 2 . 4 . Failed 49 | . 4 7 . 5 7 . 5 1 . 2 2 2 1 7 . 3 . 3 . Catastrophic 11 | . . 1 . 2 2 . 2 . . 1 . . . 3 . . . . . Database Lockouts . | . . . . . . . . . . . . . . . . . . . . Manual 26 | . 7 11 . 6 . . . . . . 2 . . . . . . . . Terminals 62 | . 9 11 . 6 9 . 5 . 2 . 2 3 . 8 . 5 . 2 . Fabricators . | . . . . . . . . . . . . . . . . . . . . Repair Stations 8 | . . . . . . 2 . . . . . . 3 . . . . 3 . Recycling Units 5 | . . . . 2 . . . . . 2 . . . . . . . 1 . Scanalyzers 4 | . . . . . . . . 1 . 1 2 . . . . . . . . Garrison Access 9 | . . . . 2 . 2 . 1 . . 1 . 1 . 1 . . 1 . Terminal Hacks 12 | . 3 . . . 2 . . . 2 . . 1 . 1 . 2 . 1 . Prototype ID Bank 1 | . 1 . . . . . . . . . . . . . . . . . . Open DSF 1 | . . . . . . . . . . . . . . . . . . 1 . Emergency Access Points 4 | . . . . . 1 . . . 1 . . 1 . . . 1 . . . Locate Traps 1 | . 1 . . . . . . . . . . . . . . . . . . Zone Layout 1 | . 1 . . . . . . . . . . . . . . . . . . Garrison Registry 2 | . . . . . 1 . . . . . . . . . . 1 . . . Patrol Navigation 1 | . . . . . . . . . . . . . . 1 . . . . . Security Stations 1 | . . . . . . . . . 1 . . . . . . . . . . Fabricator Hacks . | . . . . . . . . . . . . . . . . . . . . Repair Station Hacks 5 | . . . . . . 2 . . . . . . 2 . . . . 1 . Scan Component 3 | . . . . . . 1 . . . . . . 1 . . . . 1 . Repair 2 | . . . . . . 1 . . . . . . 1 . . . . . . Recycling Unit Hacks 4 | . . . . 2 . . . . . 1 . . . . . . . 1 . Report Inventory 1 | . . . . 1 . . . . . . . . . . . . . . . Retrieve Components 3 | . . . . 1 . . . . . 1 . . . . . . . 1 . Scanalyzer 2 | . . . . . . . . . . . 2 . . . . . . . . Insert Component 1 | . . . . . . . . . . . 1 . . . . . . . . Analyze 1 | . . . . . . . . . . . 1 . . . . . . . . Garrison Access Hacks 8 | . . . . 1 . 2 . 1 . . 1 . 1 . 1 . . 1 . Unlock Access 7 | . . . . 1 . 1 . 1 . . 1 . 1 . 1 . . 1 . Coupler Status 1 | . . . . . . 1 . . . . . . . . . . . . . Unauthorized Hacks 8 | . 2 4 . 2 . . . . . . . . . . . . . . . Terminals 8 | . 2 4 . 2 . . . . . . . . . . . . . . . Assimilate 4 | . 1 3 . . . . . . . . . . . . . . . . . Botnet 4 | . 1 1 . 2 . . . . . . . . . . . . . . . Fabricators . | . . . . . . . . . . . . . . . . . . . . Repair Stations . | . . . . . . . . . . . . . . . . . . . . Recycling Units . | . . . . . . . . . . . . . . . . . . . . Scanalyzers . | . . . . . . . . . . . . . . . . . . . . Garrison Access . | . . . . . . . . . . . . . . . . . . . . Data Cores Recovered . | . . . . . . . . . . . . . . . . . . . . Used . | . . . . . . . . . . . . . . . . . . . . Hacking Detections 31 | . 2 3 . 3 4 1 2 1 1 1 1 2 1 3 1 1 . 4 . Full Trace Events 6 | . . . . . 3 . 1 . . . . . . 2 . . . . . Feedback Events . | . . . . . . . . . . . . . . . . . . . . Feedback Blocked . | . . . . . . . . . . . . . . . . . . . . Robot Schematics Acquired . | . . . . . . . . . . . . . . . . . . . . Robots Built . | . . . . . . . . . . . . . . . . . . . . Authchips . | . . . . . . . . . . . . . . . . . . . . Time . | . . . . . . . . . . . . . . . . . . . . Total Robot Build Rating . | . . . . . . . . . . . . . . . . . . . . Part Schematics Acquired 1 | . . . . . . . . . . . 1 . . . . . . . . Parts Built . | . . . . . . . . . . . . . . . . . . . . Authchips . | . . . . . . . . . . . . . . . . . . . . Time . | . . . . . . . . . . . . . . . . . . . . Total Part Build Rating . | . . . . . . . . . . . . . . . . . . . . Parts Repaired 2 | . . . . . . 1 . . . . . . 1 . . . . . . Time 74 | . . . . . . 30 . . . . . . 44 . . . . . . Parts Recycled . | . . . . . . . . . . . . . . . . . . . . Recycled Matter . | . . . . . . . . . . . . . . . . . . . . Retrieved Matter . | . . . . . . . . . . . . . . . . . . . . Retrieved Components 10 | . . . . 2 . . . . . 2 . . . . . . . 6 . Parts Scanalyzed 1 | . . . . . . . . . . . 1 . . . . . . . . Part Schematics Acquired 1 | . . . . . . . . . . . 1 . . . . . . . . Parts Damaged . | . . . . . . . . . . . . . . . . . . . . Bothacking | -11 -10 -9 -9 -8 -8 -7 -7 -6 -6 -6 -5 -5 -5 -5 -4 -4 -4 -3 -3 ------------ Run | Jun Mat Mat Min Mat Gar Fac Gar Fac Gar Fac Fac Gar Fac Gar Fac Gar Fac Res Gar Used RIF Installer 5 | . . . . . 1 . 1 . . . . 1 . 1 . 1 . . . Hotswap 1 | . . . . . . . . . . . . . . 1 . . . . . Zone Cloak 1 | . . . . . . . . . . . . 1 . . . . . . . Watcher Feeds 1 | . . . . . . . 1 . . . . . . . . . . . . Alert ID Control 1 | . . . . . . . . . . . . . . . . 1 . . . Robots Hacked 53 | . . . . . . . . . 2 3 . 7 2 6 . 18 11 3 1 Non-combat 5 | . . . . . . . . . . . . . 2 . . . 2 1 . Combat 48 | . . . . . . . . . 2 3 . 7 . 6 . 18 9 2 1 Robot Hacks Applied 56 | . . . . . . . . . 2 3 . 7 2 6 . 19 13 3 1 parse_system 2 | . . . . . . . . . . . . . . . . 1 1 . . map_walls 1 | . . . . . . . . . . . . . 1 . . . . . . drop_inventory 1 | . . . . . . . . . . . . . . . . . 1 . . map_route 1 | . . . . . . . . . . . . . . . . . 1 . . find_shortcuts 1 | . . . . . . . . . . 1 . . . . . . . . . link_fov 3 | . . . . . . . . . . . . . 1 . . 1 1 . . overload_power 1 | . . . . . . . . . . . . . . . . . . 1 . amplify_resonance 1 | . . . . . . . . . . . . . . . . 1 . . . wipe_record 1 | . . . . . . . . . . . . . . . . 1 . . . overwrite_iff 4 | . . . . . . . . . . . . . . . . 4 . . . formatsys_high 40 | . . . . . . . . . 2 2 . 7 . 6 . 11 9 2 1 Relay Couplers Released 79 | . . . . . 8 . 16 . 5 . . 11 . 17 . 21 1 . . Machine Destruction 76 | . . . . . 5 . 16 . 5 . . 11 . 17 . 21 1 . . Programmers 3 | . . . . . 3 . . . . . . . . . . . . . . Attached 28 | . . . . . 1 . 2 . 2 2 . 6 . 4 . 8 1 1 1 Fabnet Peak Effective % . | . . . . . . . . . . . . . . . . . . . . Robots Rewired 5 | . . . . . . . . . . . . . . 2 . 3 . . . Allies Hacked . | . . . . . . . . . . . . . . . . . . . . Hacks Repelled . | . . . . . . . . . . . . . . . . . . . . Allies | -11 -10 -9 -9 -8 -8 -7 -7 -6 -6 -6 -5 -5 -5 -5 -4 -4 -4 -3 -3 -------- Run | Jun Mat Mat Min Mat Gar Fac Gar Fac Gar Fac Fac Gar Fac Gar Fac Gar Fac Res Gar Total Allies 60 | . . . 3 . . . 4 . 2 2 . 7 . 10 . 20 9 2 1 Largest Group 12 | . . . 3 3 . . 3 3 2 2 . 6 3 7 7 12 6 5 1 Highest-Rated Group 460 | . . . 40 40 . . 229 229 190 76 . 234 127 274 274 460 304 209 47 Highest-Rated Ally 95 | . . . 16 16 . . 95 95 95 47 . 49 49 95 49 80 80 64 47 Total Orders 2 | . . . . . . . . . . . . 2 . . . . . . . STAY 1 | . . . . . . . . . . . . 1 . . . . . . . FOLLOW 1 | . . . . . . . . . . . . 1 . . . . . . . Ally Attacks 230 | . . . . 13 . . 13 . 8 7 . 29 . 35 . 71 41 12 1 Total Damage 6743 | . . . . 119 . . 483 . 232 137 . 546 . 1292 . 2197 1266 433 38 Kills 43 | . . . . 1 . . 7 . 1 2 . 4 . 3 . 15 9 1 . Allies Corrupted . | . . . . . . . . . . . . . . . . . . . . Allies Melted 2 | . . . . . . . . . . . . . . . . 1 1 . . Intel | -11 -10 -9 -9 -8 -8 -7 -7 -6 -6 -6 -5 -5 -5 -5 -4 -4 -4 -3 -3 ------- Run | Jun Mat Mat Min Mat Gar Fac Gar Fac Gar Fac Fac Gar Fac Gar Fac Gar Fac Res Gar Robot Analysis Total . | . . . . . . . . . . . . . . . . . . . . Derelict Logs Recovered . | . . . . . . . . . . . . . . . . . . . . Drone Launches . | . . . . . . . . . . . . . . . . . . . . Drone Recoveries . | . . . . . . . . . . . . . . . . . . . . Exploration | -11 -10 -9 -9 -8 -8 -7 -7 -6 -6 -6 -5 -5 -5 -5 -4 -4 -4 -3 -3 ------------- Run | Jun Mat Mat Min Mat Gar Fac Gar Fac Gar Fac Fac Gar Fac Gar Fac Gar Fac Res Gar Turns Passed 13798 | 3 176 309 41 590 795 131 1622 118 380 1057 137 1836 172 2467 274 2468 627 424 171 Spaces Moved 7224 | 3 109 170 23 283 717 190 890 69 200 706 111 950 70 1103 154 895 275 241 65 Core 32 | . . . . . . . . . . 32 . . . . . . . . . Treads 3201 | . . 108 23 143 . . 744 69 166 5 . 414 70 1103 154 202 . . . Legs 2000 | 3 109 62 . . . . . . 34 518 . . . . . 693 275 241 65 Wheels 615 | . . . . . . . . . . . 79 536 . . . . . . . Hover . | . . . . . . . . . . . . . . . . . . . . Flight 1376 | . . . . 140 717 190 146 . . 151 32 . . . . . . . . Fastest Speed 25 | 120 120 120 160 26 26 29 27 160 90 25 25 100 160 160 156 156 115 111 184 Average Speed 134 | 120 120 145 160 96 30 29 138 160 148 99 78 138 160 160 157 215 169 141 186 Slowest Speed 625 | 120 120 160 160 240 103 32 160 160 160 250 100 240 160 240 160 625 190 188 187 Overloaded Moves . | . . . . . . . . . . . . . . . . . . . . Propulsion Burnouts . | . . . . . . . . . . . . . . . . . . . . Robots Hopped 1 | . . . . 1 . . . . . . . . . . . . . . . Cave-ins Triggered 1 | . . . . . . . . . . . . . . . . 1 . . . Exploration Rate (%) 29 | 2 23 17 6 24 64 5 83 2 47 23 2 79 2 92 6 81 9 9 22 Regions Visited 19 Branch Regions 1 Pre-discovered Areas . | . . . . . . . . . . . . . . . . . . . . Known Exits Taken 7 | . . . . 1 . 1 . 1 . . 1 . 1 . 1 . . 1 . Unknown Exits Taken 6 | 1 1 1 1 . . . . . . 1 . . . . . . 1 . . Scrap Searched . | . . . . . . . . . . . . . . . . . . . . Spaces Dug 12 | . . . . . . . 7 . 2 . . . . 2 . 1 . . . Terrain Destroyed 237 | . . . . 49 76 . 7 . 2 . . 1 . 69 . 29 2 1 1 Melee 8 | . . . . . . . 6 . 2 . . . . . . . . . . Projectile 48 | . . . . . . . 1 . . . . 1 . 13 . 29 2 1 1 AOE 181 | . . . . 49 76 . . . . . . . . 56 . . . . . Terrain Rammed . | . . . . . . . . . . . . . . . . . . . . Walls Destroyed . | . . . . . . . . . . . . . . . . . . . . Machines Disabled . | . . . . . . . . . . . . . . . . . . . . Actions | -11 -10 -9 -9 -8 -8 -7 -7 -6 -6 -6 -5 -5 -5 -5 -4 -4 -4 -3 -3 --------- Run | Jun Mat Mat Min Mat Gar Fac Gar Fac Gar Fac Fac Gar Fac Gar Fac Gar Fac Res Gar Total 10383 | 2 145 204 27 585 1188 266 1157 77 260 958 139 1328 127 1596 186 1300 411 321 106 Wait 1192 | . 17 1 5 236 256 60 72 . 12 34 5 137 49 161 20 88 20 10 9 Move 7209 | 2 108 169 22 281 716 190 889 69 199 705 111 949 70 1102 154 893 274 241 65 Hop 1 | . . . . 1 . . . . . . . . . . . . . . . Pick Up 347 | . 5 5 . 18 12 6 15 1 6 47 4 60 1 67 2 57 25 15 1 Fast Attach 46 | . 1 . . 3 11 2 10 . 1 8 . 4 . 1 2 2 . 1 . Attach 195 | . 2 5 . 6 4 3 9 3 3 42 5 16 1 21 3 32 15 11 14 Detach 46 | . . . . 3 . . 7 2 . 5 1 4 . 3 . 5 6 9 1 Swap 179 | . 4 1 . 8 18 1 14 1 6 10 2 20 1 33 1 24 17 15 3 Drop 257 | . 4 2 . 16 20 4 27 1 6 22 1 36 . 55 4 27 18 12 2 Fire 575 | . 4 21 . 13 40 . 24 . 17 58 10 89 5 134 . 112 31 7 10 Melee 98 | . . . . . 21 . 65 . 8 . . 4 . . . . . . . Ram 3 | . . . . . . . . . . 3 . . . . . . . . . Kick 16 | . . . . . . . . . . 9 . . . . . 6 1 . . Crush . | . . . . . . . . . . . . . . . . . . . . Escape Stasis 150 | . . . . . 90 . 25 . . 13 . . . . . 22 . . . Rewire 69 | . . . . . . . . . 2 2 . 9 . 19 . 32 4 . 1 Trap . | . . . . . . . . . . . . . . . . . . . . Miscellaneous . | . . . . . . . . . . . . . . . . . . . . Route ------- -11/Junkyard -10/Materials -9/Materials -9/Mines -8/Materials -8/Garrison (discovered 4 exits: *Fac x3 / [Mat]) -7/Factory -7/Garrison (discovered 3 exits: *Fac x3) -6/Factory -6/Garrison -6/Factory -5/Factory -5/Garrison (discovered 3 exits: *Fac x3) -5/Factory -5/Garrison (discovered 3 exits: *Fac x3) -4/Factory -4/Garrison (discovered 3 exits: [*Fac x3]) -4/Factory -3/Research -3/Garrison History --------- Turn | Location | Event 1 | -11/Junkyard | Discovered new exit (range 3) 4 | -11/Junkyard | Entered Materials 140 | -10/Materials | Discovered new exit (range 8) 180 | -10/Materials | Entered another Materials area 180 | -9/Materials | Evolved 2 slots: Propulsion x1, Utility x1 314 | -9/Materials | Build established: Mutant 430 | -9/Materials | Discovered new exit (range 17) 489 | -9/Materials | Entered Mines 491 | -9/Mines | Assisted by bots powering up and referring to "LRC-V3" 503 | -9/Mines | Met a Derelict bent on vengeance 504 | -9/Mines | Discovered new exit (range 17) 530 | -9/Mines | Entered Materials 530 | -8/Materials | Accompanied by 3 allies 530 | -8/Materials | Evolved 2 slots: Power x1, Propulsion x1 655 | -8/Materials | Found Prototype Launcher 655 | -8/Materials | Identified Rocket Array 659 | -8/Materials | Found Rocket Array 1120 | -8/Materials | Identified exit to Garrison 1120 | -8/Materials | Entered Garrison 1333 | -8/Garrison | Build established: Sprinter 1342 | -8/Garrison | Triggered checkpoint 1504 | -8/Garrison | Triggered checkpoint 1590 | -8/Garrison | Discovered new exit (range 9) 1606 | -8/Garrison | Triggered checkpoint 1659 | -8/Garrison | Lost 3 parts (2n1u) 1732 | -8/Garrison | Discovered new exit (range 79) 1732 | -8/Garrison | Discovered new exit (range 22) 1732 | -8/Garrison | Discovered new exit (range 55) 1732 | -8/Garrison | Discovered new exit (range 58) 1845 | -8/Garrison | Core integrity fell below 50% 1861 | -8/Garrison | Installed Relay Interface Framework 1874 | -8/Garrison | Garrison Relay disabled 1909 | -8/Garrison | Phase Generator disabled 1915 | -8/Garrison | Entered Factory 1915 | -7/Factory | Evolved 2 slots: Utility x2 1975 | -7/Factory | Repaired Imp. VTOL Module 2046 | -7/Factory | Identified exit to Garrison 2046 | -7/Factory | Entered Garrison 2046 | -7/Garrison | Warlord forces raided the area 2048 | -7/Garrison | Triggered checkpoint 2088 | -7/Garrison | Triggered checkpoint 2096 | -7/Garrison | Triggered checkpoint 2128 | -7/Garrison | Triggered checkpoint 2128 | -7/Garrison | Triggered checkpoint 2140 | -7/Garrison | Triggered checkpoint 2275 | -7/Garrison | Warlord forces retreated 2425 | -7/Garrison | Garrison Relay disabled 2464 | -7/Garrison | Discovered new exit (range 19) 2477 | -7/Garrison | Build established: Scavenger-Mutant 2731 | -7/Garrison | Discovered new exit (range 5) 2812 | -7/Garrison | Build established: Mutant 2820 | -7/Garrison | Garrison Relay disabled 2861 | -7/Garrison | Rescued a captive Derelict 2863 | -7/Garrison | Rescued a captive Derelict 3035 | -7/Garrison | Discovered new exit (range 10) 3086 | -7/Garrison | Triggered checkpoint 3088 | -7/Garrison | Garrison Relay disabled 3170 | -7/Garrison | Found embedded Infiltrators 3421 | -7/Garrison | Build established: Scavenger-Mutant 3434 | -7/Garrison | Triggered checkpoint 3452 | -7/Garrison | Expanded RIF knowledge: Watcher Feeds 3492 | -7/Garrison | Garrison Relay disabled 3668 | -7/Garrison | Entered Factory 3668 | -6/Factory | Accompanied by 3 allies 3668 | -6/Factory | Evolved 2 slots: Propulsion x2 3786 | -6/Factory | Identified exit to Garrison 3786 | -6/Factory | Entered Garrison 3786 | -6/Garrison | Accompanied by 2 allies 3816 | -6/Garrison | Triggered checkpoint 3891 | -6/Garrison | Garrison Relay disabled 3931 | -6/Garrison | Learned Factory security intel 4157 | -6/Garrison | Discovered new exit (range 10) 4166 | -6/Garrison | Entered Factory 4194 | -6/Factory | Lost 6 parts (1p1n2u2w) 4463 | -6/Factory | Build established: Mutant 4473 | -6/Factory | Garrison activated, responded to threat 4516 | -6/Factory | First assault squad dispatched 4638 | -6/Factory | Lost 10 parts (2p5n2u1w) 4640 | -6/Factory | Core integrity fell below 50% 4652 | -6/Factory | System corruption reached 10% 4920 | -6/Factory | Lost 3 parts (1n2u) 4951 | -6/Factory | Core integrity fell below 20% 5010 | -6/Factory | Lost 4 parts (4n) 5202 | -6/Factory | Discovered new exit (range 20) 5202 | -6/Factory | Spotted B-75 Beast 5223 | -6/Factory | Entered another Factory area 5223 | -5/Factory | Evolved 2 slots: Propulsion x1, Utility x1 5288 | -5/Factory | Lost 4 parts (4n) 5360 | -5/Factory | Identified exit to Garrison 5360 | -5/Factory | Entered Garrison 5388 | -5/Garrison | Triggered checkpoint 5447 | -5/Garrison | Garrison Relay disabled 5674 | -5/Garrison | Triggered checkpoint 5814 | -5/Garrison | Triggered checkpoint 5835 | -5/Garrison | Garrison Relay disabled 5886 | -5/Garrison | Discovered new exit (range 21) 5918 | -5/Garrison | Expanded RIF knowledge: Zone Cloak 6044 | -5/Garrison | Triggered checkpoint 6060 | -5/Garrison | Triggered checkpoint 6160 | -5/Garrison | Discovered new exit (range 8) 6340 | -5/Garrison | Build established: Scavenger-Mutant 6776 | -5/Garrison | Build established: Hauler-Mutant 7031 | -5/Garrison | Garrison Relay disabled 7052 | -5/Garrison | Triggered checkpoint 7153 | -5/Garrison | Discovered new exit (range 15) 7196 | -5/Garrison | Entered Factory 7196 | -5/Factory | Accompanied by 3 allies 7280 | -5/Factory | Build established: Scavenger-Mutant 7336 | -5/Factory | Repaired Remote Datajack 7363 | -5/Factory | Identified exit to Garrison 7368 | -5/Factory | Entered Garrison 7368 | -5/Garrison | Accompanied by 3 allies 7411 | -5/Garrison | Expanded RIF knowledge: Hotswap 7704 | -5/Garrison | Build established: Bothacker-Mutant 8028 | -5/Garrison | Found embedded Infiltrators 8037 | -5/Garrison | Spotted B-75 Beast 8054 | -5/Garrison | Allies destroyed B-75 Beast 8141 | -5/Garrison | Build established: Scavenger-Mutant 8247 | -5/Garrison | Phase Generator disabled 8295 | -5/Garrison | Discovered new exit (range 9) 8328 | -5/Garrison | Triggered checkpoint 8372 | -5/Garrison | Garrison Relay disabled 8421 | -5/Garrison | Garrison Relay disabled 8594 | -5/Garrison | Triggered checkpoint 8594 | -5/Garrison | Triggered checkpoint 8767 | -5/Garrison | Build established: Botlord-Mutant 8837 | -5/Garrison | Discovered new exit (range 4) 9050 | -5/Garrison | Triggered checkpoint 9099 | -5/Garrison | Garrison Relay disabled 9344 | -5/Garrison | Triggered checkpoint 9403 | -5/Garrison | Discovered new exit (range 11) 9440 | -5/Garrison | Triggered checkpoint 9458 | -5/Garrison | Garrison Relay disabled 9835 | -5/Garrison | Entered Factory 9835 | -4/Factory | Accompanied by 7 allies 9835 | -4/Factory | Evolved 2 slots: Weapon x2 10085 | -4/Factory | First assault squad dispatched 10097 | -4/Factory | Identified exit to Garrison 10109 | -4/Factory | Entered Garrison 10109 | -4/Garrison | Accompanied by 7 allies 10140 | -4/Garrison | Triggered checkpoint 10164 | -4/Garrison | Triggered checkpoint 10175 | -4/Garrison | Garrison Relay disabled 10256 | -4/Garrison | Expanded RIF knowledge: Alert ID Control 10422 | -4/Garrison | P-70 Sage assimilated allied Fighter 6b 10429 | -4/Garrison | Spotted B-86 Titan 10449 | -4/Garrison | Crushed by falling debris 10462 | -4/Garrison | Triggered checkpoint 10464 | -4/Garrison | Destroyed B-86 Titan 10476 | -4/Garrison | Triggered checkpoint 10487 | -4/Garrison | Lost 3 parts (2n1w) 10531 | -4/Garrison | Lost 3 parts (1p2n) 10801 | -4/Garrison | Garrison Relay disabled 11009 | -4/Garrison | Discovered new exit (range 10) 11029 | -4/Garrison | Found Quantum Capacitor 11070 | -4/Garrison | Discovered new exit (range 7) 11070 | -4/Garrison | Discovered new exit (range 46) 11070 | -4/Garrison | Discovered new exit (range 62) 11096 | -4/Garrison | Triggered checkpoint 11166 | -4/Garrison | Garrison Relay disabled 11377 | -4/Garrison | System corruption reached 10% 11626 | -4/Garrison | Build established: Botlord-Gunner 11704 | -4/Garrison | Lost 7 parts (1p3n1u2w) 12119 | -4/Garrison | Garrison Relay disabled 12158 | -4/Garrison | Build established: Botlord-Mutant 12322 | -4/Garrison | Triggered checkpoint 12411 | -4/Garrison | Garrison Relay disabled 12426 | -4/Garrison | Spotted Striker 12455 | -4/Garrison | Destroyed Striker 12528 | -4/Garrison | Found embedded Infiltrators 12577 | -4/Garrison | Entered Factory 12577 | -4/Factory | Accompanied by 2 allies 12827 | -4/Factory | First assault squad dispatched 13172 | -4/Factory | Discovered new exit (range 8) 13204 | -4/Factory | Entered Research 13204 | -3/Research | Accompanied by 5 allies 13204 | -3/Research | Evolved 2 slots: Utility x2 13256 | -3/Research | Found Prototype Processor 13257 | -3/Research | Identified Spectral Analyzer 13628 | -3/Research | Identified exit to Garrison 13628 | -3/Research | Entered Garrison 13695 | -3/Garrison | Spotted B-86 Titan 13713 | -3/Garrison | Triggered checkpoint 13727 | -3/Garrison | Triggered checkpoint 13773 | -3/Garrison | Lost 10 parts (1p6n1u2w) 13786 | -3/Garrison | System corruption reached 10% 13799 | -3/Garrison | Self-destructed Last Messages --------------- 13778_ G-67 Veteran knocked back. 13785_ Critical hit (Smash). 13785_ Myomer Leg destroyed. 13785_ Relay Coupler [Swarmer] destroyed. 13785_ Flexi-carbon Leg destroyed. 13785_ System corrupted by crushing effect (+4). 13785_ System corrupted by crushing effect (+1). 13785_ System corrupted by crushing effect (+2). 13785_ Knocked back. 13786_ System corrupted: Energy discharge (-36). 13789_ Adv. Weapon Cycler destroyed. 13789_ System corrupted by crushing effect (+1). 13789_ Knocked back. 13790_ Myomer Leg destroyed. 13790_ Critical hit (Burn: +37). 13794_ Hardcell Cannon destroyed. 13794_ System corrupted by crushing effect (+1). 13797_ Relay Coupler [Hunter] destroyed. 13797_ System corrupted by crushing effect (+2). 13798_ Jacked B-74 Champion... Map ----- +----------------------------------------------------+ | ??????????????????# ############################ | | ??????????????????# #??????????????????????????? | | ??????????????????# #??????????????????????????? | | ??????????????????# #??????????????????????????? | | ??????????????????# #??????????????????????????? | | ????????????####??# "??????????????????????????? | | ????????#???# ?# %"??????????????????????????? | | ???????## ## ## #??????????????????????????? | | ???????# #??????????????????????????? | | ?????? "??????????????????????????? | | ?????? #??????????????????????????? | | ???????# ## ""% #??????????????????????????? | | ???????# ## "" ###????????????????????????? | | ???????" %! #????????????????????????? | | ???????" = *#????????????????????????? | | ???????" %! #????????????????????????? | | ???????" % [#????????????????????????? | | ???????# ## ## ###????????????????????????? | | ???????? ??# ## "############??????????????? | | ??????? "???????????????? | | ??????? % % #???????????????? | | ??????? %[ #???????????????? | | ???????######""""########g####% #???????????????? | | ????????????????????????# #### %#???????????????? | | ????????????????????????#g#;##% #???????????????? | | ????????????????????????#@bg g #???????????????? | | ????????????????????????######^^^#???????????????? | | ?????????????????????????????# #???????????????? | | ?????????????????????????????# #???????????????? | | ?????????????????????????????# ??????????????? | | ?????????????????????????????# ?????????????? | | ?????????????????????????????# ####????????????? | | ?????????????????????????????# #???????????????? | | ?????????????????????????????? #???????????????? | | ?????????????????????????????? #???????????????? | | ?????????????????????????????? #???????????????? | | ?????????????????????????????? #???????????????? | | ?????????????????????????????? #???????????????? | | ?????????????????????????????? #???????????????? | | ?????????????????????????????? ????????????????? | | ?????????????????????????????????????????????????? | | ?????????????????????????????????????????????????? | | ?????????????????????????????????????????????????? | | ?????????????????????????????????????????????????? | | ?????????????????????????????????????????????????? | | ?????????????????????????????????????????????????? | | ?????????????????????????????????????????????????? | | ?????????????????????????????????????????????????? | | ?????????????????????????????????????????????????? | | ?????????????????????????????????????????????????? | +----------------------------------------------------+ Best States ------------- Heat Dissipation 102 Coolant Potential 65 Energy Generation 38 Energy Capacity 950 Matter Stores 300 Matter Capacity 300 Sight Range 22 Robot Scan Range 16 Terrain Scan Density 10 Jamming Range 12 Additional Mass Support 12 Armor Coverage 225 Resistance: KI 30 Resistance: EM 15 Weapon Cycling 25 Melee Speed Boost 20 Phase Shifting 15 Evasion (%) 72 Targeting Accuracy 10 Melee Accuracy 5 Target Analysis 6 Armor Integrity Analysis 30 Recoil Reduction 7 Matter Filtering 30 Particle Charging 30 Defensive Hacking 10 Relay Coupler Types 4 Relay Coupler Value 114 Authchip Count 9 Item Schematics ----------------- Remote Datajack | -5/Factory | Scanalyzed Robot Schematics ------------------ None Fabricated ------------ Nothing Alien Tech Used ----------------- None Achievements -------------- Packrat Challenges ------------ None Game ------ Seed FortressResetDoublenader Manual? 0 Play Time 03:27:26 Cumulative 82.2 hours Start 2024.01.17 @ 23:16:15 End 2024.01.18 @ 05:36:49 Sessions 1 Manual Loads 0 Difficulty Rogue Special Mode None Game No. 88 Rogue 73 Adventurer 15 Explorer 0 Win Type - Total 1 Types 0/0/1/0/0/0/0/0/0 Lore% 33 Gallery% 60 Achievement% 46 Wizard Run 0 Options --------- ASCII 0 Keyboard 0 Movement Mouse Keybinds 0 Fullscreen 2 Font 36/Smallcaps Map View 76x50 Tactical HUD 1 Map Filters NONE Filters NONE Steam 1 RUN: e11516ba-d7e4-4bb4-8203-f065b1461908